bitfinex/quotes_ETHUSD_20220120
["timestamp","ask_amount","ask_price","bid_price","bid_amount"]
[1642670170046,3.35917804,3123.3,3123.2,2.73231894]
[1642670170855,4.65917804,3123.3,3123.2,2.73231894]
[1642670171055,3.65917804,3123.3,3123.2,2.73231894]
[1642670175715,2.65917804,3123.3,3123.2,2.73231894]
[1642670175915,2.35917804,3123.3,3123.2,2.73231894]
[1642670176515,3.35917804,3123.3,3123.2,2.73231894]
[1642670177744,3.05917804,3123.3,3123.2,2.73231894]
[1642670179546,2.05917804,3123.3,3123.2,2.73231894]
[1642670179749,2.05917804,3123.3,3123.2,2.75448662]
[1642670181195,2.35917804,3123.3,3123.2,2.75448662]
[1642670181795,3.35917804,3123.3,3123.2,0.02960291]
[1642670182194,4.35917804,3123.3,3123.2,0.02960291]
[1642670182399,5.45027804,3123.3,3123.2,0.02960291]
[1642670184496,8.13599514,3123.3,3123.2,0.02960291]
[1642670184742,8.13599514,3123.3,3123.2,0.00743523]
[1642670185150,0.801,3123.1,3122.7,0.01027735]
[1642670185349,0.466,3123.0,3122.7,0.01027735]
[1642670185549,0.766,3123.0,3122.7,0.01027735]
[1642670185748,0.79658902,3122.8,3122.6,0.01084577]
[1642670185949,1.59317804,3122.8,3122.6,0.01084577]
[1642670186648,1.59317804,3122.8,3122.5,0.0114142]
[1642670186850,1.59317804,3122.8,3122.5,1.64357233]
[1642670187250,1.59317804,3122.8,3122.6,0.01084577]
[1642670187651,1.59317804,3122.8,3122.5,1.64357233]
[1642670187847,1.59317804,3122.8,3122.6,0.01084577]
[1642670188247,1.59317804,3122.8,3122.6,1.6430039]
[1642670188700,1.59317804,3122.8,3122.7,2.76027735]
[1642670189498,1.59317804,3122.8,3122.7,5.48605725]
[1642670190103,1.59317804,3122.8,3122.7,2.73605725]
[1642670191703,1.59317804,3122.8,3122.7,4.36821538]
[1642670192103,1.59317804,3122.8,3122.7,4.36808688]
[1642670193347,1.59317804,3122.8,3122.7,4.36728486]
[1642670194346,1.59317804,3122.8,3122.7,2.72486517]
[1642670194747,1.59317804,3122.8,3122.7,4.3570233]
[1642670195352,1.59317804,3122.8,3122.7,2.72486517]
[1642670195554,1.59317804,3122.8,3122.7,4.35282654]
[1642670195751,1.59317804,3122.8,3122.7,0.00947533]
[1642670195991,1.59317804,3122.8,3122.7,1.6374367]
[1642670196394,1.59317804,3122.8,3122.7,0.00947533]
[1642670197398,1.59317804,3122.8,3122.7,1.6374367]
[1642670197798,1.59317804,3122.8,3122.7,1.63863694]
[1642670202351,1.59317804,3122.8,3122.7,0.01067557]
[1642670203996,1.59317804,3122.8,3122.7,2.4443475]
[1642670204396,1.59317804,3122.8,3122.7,0.01067557]
[1642670205801,1.59317804,3122.8,3122.7,2.4443475]
[1642670206004,1.59317804,3122.8,3122.7,0.01067557]
[1642670207254,1.59317804,3122.8,3122.7,2.4443475]
[1642670208553,1.59317804,3122.8,3122.7,0.01067557]
[1642670208750,1.59317804,3122.8,3122.7,2.46046457]
[1642670208951,2.59317804,3122.8,3122.7,2.46046457]
[1642670211493,2.89317804,3122.8,3122.7,0.01067557]
[1642670211694,2.89317804,3122.8,3122.7,0.0106756]
[1642670211894,2.59317804,3122.8,3122.7,0.0106756]
[1642670214097,2.89317804,3122.8,3122.7,0.0106756]
[1642670214496,2.89317804,3122.8,3122.7,2.73654575]
[1642670214949,2.59317804,3122.8,3122.7,2.73654575]
[1642670215951,2.89317804,3122.8,3122.7,2.73654575]
[1642670216354,2.89317804,3122.8,3122.7,2.73560835]
[1642670216950,2.89317804,3122.8,3122.7,2.7356143]
[1642670222102,2.89317804,3122.8,3122.7,2.73561432]
[1642670227501,2.89317804,3122.8,3122.7,4.36922835]
[1642670227701,2.89317804,3122.8,3122.7,2.73561432]
[1642670227902,2.89317804,3122.8,3122.6,1.63361403]
[1642670227903,4.5,3122.7,3122.4,0.00236435]
[1642670228103,0.466,3122.6,3122.4,0.00236435]
[1642670228301,3.30116,3122.5,3122.4,0.00236435]
[1642670228503,5.66033804,3122.5,3122.4,0.00236435]
[1642670228702,5.92403804,3122.5,3122.4,0.00406962]
[1642670229102,6.22403804,3122.5,3122.4,0.00406962]
[1642670229752,3.72403804,3122.5,3122.4,0.00406962]
[1642670230154,7.95284056,3122.5,3122.4,0.00406962]
[1642670230350,7.9518227,3122.5,3122.4,0.00406962]
[1642670233359,6.4433956,3122.5,3122.4,0.00406962]
[1642670234299,7.4433956,3122.5,3122.4,0.00406962]
[1642670234502,8.65148792,3122.5,3122.4,0.00406962]
[1642670235602,7.4433956,3122.5,3122.4,0.00406962]
[1642670235807,4.45932018,3122.5,3122.4,0.00406962]
[1642670236605,7.19799558,3122.5,3122.4,0.00406962]
[1642670239049,3.45932018,3122.5,3122.4,0.00406962]
[1642670239249,3.65816018,3122.5,3122.4,0.00406962]
[1642670240852,7.15816018,3122.5,3122.4,0.00406962]
[1642670245153,6.55917804,3122.5,3122.4,0.00406962]
[1642670245353,6.09317804,3122.5,3122.4,0.00406962]
[1642670246953,2.89317804,3122.5,3122.4,0.00406962]
[1642670247855,2.89317804,3122.5,3122.4,2.73080252]
[1642670247856,3.19317804,3122.5,3122.4,2.73080252]
[1642670249704,3.19317804,3122.5,3122.4,2.74759048]
[1642670249905,2.89317804,3122.5,3122.4,2.74759048]
[1642670252007,3.19317804,3122.5,3122.4,2.74759048]
[1642670252857,2.89317804,3122.5,3122.4,2.74759048]
[1642670254756,2.89317804,3122.5,3122.4,2.74655324]
[1642670254961,2.89317804,3122.5,3122.4,2.72976528]
[1642670255559,2.89317804,3122.5,3122.4,0.00303238]
[1642670255762,2.89317804,3122.5,3122.4,0.00423277]
[1642670256000,2.89317804,3122.5,3122.4,2.73096567]
[1642670257801,3.19317804,3122.5,3122.4,2.73096567]
[1642670258702,3.19317804,3122.5,3122.4,2.7292604]
[1642670258904,3.19317804,3122.5,3122.4,0.0025275]
[1642670259102,3.19317804,3122.5,3122.4,0.00252752]
[1642670262458,2.89317804,3122.5,3122.4,0.00252752]
[1642670263057,2.89317804,3122.5,3122.4,2.72926042]
[1642670263604,2.89317804,3122.5,3122.4,0.00252752]
[1642670263807,2.59317804,3122.5,3122.4,2.25252752]
[1642670264009,2.59317804,3122.5,3122.4,4.97926042]
[1642670264809,2.59317804,3122.5,3122.4,2.72926042]
[1642670265009,2.59317804,3122.5,3122.4,0.00252752]
[1642670265210,2.59317804,3122.5,3122.4,2.72926042]
[1642670265410,2.59317804,3122.5,3122.4,2.72926044]
[1642670265710,2.59317804,3122.5,3122.4,0.00252754]
[1642670270560,2.59317804,3122.5,3122.4,2.72926044]
[1642670270762,2.59317804,3122.5,3122.4,0.00252754]
[1642670274405,2.59317804,3122.5,3122.4,1.63041109]
[1642670274859,2.59317804,3122.5,3122.4,8.13431015]
[1642670275062,2.59317804,3122.5,3122.4,7.96282283]
[1642670275460,2.59317804,3122.5,3122.4,7.96282286]
[1642670276259,2.59317804,3122.5,3122.4,5.51303386]
[1642670276464,2.59317804,3122.5,3122.4,2.72926049]
[1642670277261,2.59317804,3122.5,3122.4,2.72844814]
[1642670277663,2.59317804,3122.5,3122.4,4.35952858]
[1642670277862,2.59317804,3122.5,3122.4,1.63279568]
[1642670278062,2.59317804,3122.5,3122.4,5.36239476]
[1642670278262,2.59317804,3122.5,3122.4,2.72844814]
[1642670278501,2.59317804,3122.5,3122.4,5.39538203]
[1642670278703,2.59317804,3122.5,3122.4,2.72844814]
[1642670278903,2.59317804,3122.5,3122.4,5.36175914]
[1642670279106,2.59317804,3122.5,3122.4,5.3987284]
[1642670279404,2.59317804,3122.5,3122.4,2.72844814]
[1642670279605,2.59317804,3122.5,3122.4,7.86615577]
[1642670279807,2.59317804,3122.5,3122.4,5.17823714]
[1642670280208,2.59317804,3122.5,3122.4,2.72844814]
[1642670280610,2.59317804,3122.5,3122.4,5.38199863]
[1642670280807,2.59317804,3122.5,3122.4,2.72844814]
[1642670281009,2.59317804,3122.5,3122.4,5.35483317]
[1642670281209,2.59317804,3122.5,3122.4,2.73248498]
[1642670282647,2.59317804,3122.5,3122.4,4.36315347]
[1642670282847,2.59317804,3122.5,3122.4,4.36315349]
[1642670283048,2.59317804,3122.5,3122.4,2.732485]
[1642670291257,2.59317804,3122.5,3122.4,2.73467063]
[1642670291961,2.59317804,3122.5,3122.4,2.73467065]
[1642670295917,2.89317804,3122.5,3122.4,2.73467065]
[1642670296115,2.59317804,3122.5,3122.4,2.73467065]
[1642670297951,2.59317804,3122.5,3122.4,4.36533914]
[1642670298156,2.59317804,3122.5,3122.4,2.73467065]
[1642670298358,2.59317804,3122.5,3122.4,4.36533914]
[1642670298755,2.89317804,3122.5,3122.4,2.73467065]
[1642670298955,2.59317804,3122.5,3122.4,2.73467065]
[1642670299557,2.59317804,3122.5,3122.4,4.36533914]
[1642670299958,2.59317804,3122.5,3122.4,4.36450178]
[1642670300359,2.59317804,3122.5,3122.4,2.73383329]
[1642670301000,2.59317804,3122.5,3122.4,4.36450178]
[1642670301201,2.59317804,3122.5,3122.4,2.73383329]
[1642670301805,2.59317804,3122.5,3122.4,4.36450178]
[1642670302001,2.59317804,3122.5,3122.4,2.73383329]
[1642670302602,2.59317804,3122.5,3122.4,4.36450178]
[1642670307561,2.59317804,3122.5,3122.4,4.3645018]
[1642670322167,2.59317804,3122.5,3122.4,2.73383331]
[1642670323510,2.59317804,3122.5,3122.4,4.3645018]
[1642670323710,2.59317804,3122.5,3122.4,4.3635741]
[1642670324515,2.59317804,3122.5,3122.4,2.73290561]
[1642670324714,2.59317804,3122.5,3122.4,4.3635741]
[1642670325414,2.59317804,3122.5,3122.4,2.73290561]
[1642670325816,2.59317804,3122.5,3122.4,4.3635741]
[1642670326215,2.59317804,3122.5,3122.4,4.36979658]
[1642670327658,2.59317804,3122.5,3122.4,2.73912809]
[1642670328460,2.59317804,3122.5,3122.4,4.36979658]
[1642670328860,2.89317804,3122.5,3122.4,4.36979658]
[1642670329060,2.89317804,3122.5,3122.4,2.73912809]
[1642670331108,2.35917804,3122.5,3122.4,2.73912809]
[1642670331807,2.65917804,3122.5,3122.4,2.73912809]
[1642670333913,2.62712873,3122.5,3122.4,2.73912809]
[1642670334113,3.62712873,3122.5,3122.4,2.73912809]
[1642670334762,2.62712873,3122.5,3122.4,2.73912809]
[1642670335967,2.35917804,3122.5,3122.4,2.73912809]
[1642670337967,2.65917804,3122.5,3122.4,2.73912809]
[1642670340411,3.65917804,3122.5,3122.4,2.73912809]
[1642670341012,4.65917804,3122.5,3122.4,2.73912809]
[1642670344662,4.65917804,3122.5,3122.4,2.7382679]
[1642670349763,4.35917804,3122.5,3122.4,2.7382679]
[1642670351057,4.35917804,3122.5,3122.4,2.6882679]
[1642670352057,3.05917804,3122.5,3122.4,2.6882679]
[1642670353508,4.35917804,3122.5,3122.4,2.6882679]
[1642670356315,4.40237804,3122.5,3122.4,2.6882679]
[1642670357561,4.10237804,3122.5,3122.4,2.6882679]
[1642670357759,3.10237804,3122.5,3122.4,2.6882679]
[1642670358960,3.40237804,3122.5,3122.4,2.6882679]
[1642670359161,4.40237804,3122.5,3122.4,2.6882679]
[1642670359366,3.40237804,3122.5,3122.4,2.6882679]
[1642670359564,4.40237804,3122.5,3122.4,2.6882679]
[1642670359764,3.10237804,3122.5,3122.4,2.6882679]
[1642670361409,3.40237804,3122.5,3122.4,2.6882679]
[1642670362709,4.40237804,3122.5,3122.4,2.6882679]
[1642670362909,3.40237804,3122.5,3122.4,2.6882679]
[1642670363109,4.40237804,3122.5,3122.4,2.68614229]
[1642670363411,3.40237804,3122.5,3122.4,2.68614229]
[1642670363709,4.40237804,3122.5,3122.4,2.68614229]
[1642670368808,3.05917804,3122.5,3122.4,2.68614229]
[1642670369012,1.59317804,3122.5,3122.4,2.68614229]
[1642670369210,2.59317804,3122.5,3122.4,2.68614229]
[1642670371512,2.59317804,3122.5,3122.4,2.68614231]
[1642670373271,2.89317804,3122.5,3122.4,2.68614231]
[1642670373874,2.59317804,3122.5,3122.4,2.68614231]
[1642670374675,2.89317804,3122.5,3122.4,2.68614231]
[1642670375476,3.89317804,3122.5,3122.4,2.68614231]
[1642670375676,2.89317804,3122.5,3122.4,2.68614231]
[1642670378615,2.59317804,3122.5,3122.4,2.68614231]
[1642670387460,2.59317804,3122.5,3122.4,2.68516545]
[1642670404767,2.89317804,3122.5,3122.4,2.68516545]
[1642670404972,2.89317804,3122.5,3122.4,2.68552019]
[1642670409761,2.89317804,3122.5,3122.4,2.68459181]
[1642670415819,3.19317804,3122.5,3122.4,4.3152603]
[1642670416619,3.19317804,3122.5,3122.4,2.68459181]
[1642670416921,2.89317804,3122.5,3122.4,2.68459181]
[1642670417363,2.89317804,3122.5,3122.4,4.3152603]
[1642670417765,2.89317804,3122.5,3122.4,2.68459181]
[1642670419768,2.89317804,3122.5,3122.4,2.70997921]
[1642670423817,2.89317804,3122.5,3122.4,5.47118629]
[1642670424021,2.89317804,3122.5,3122.4,2.70997921]
[1642670424868,2.89317804,3122.5,3122.4,2.68459181]
[1642670425767,3.19317804,3122.5,3122.4,2.68459181]
[1642670426767,2.89317804,3122.5,3122.4,2.68459181]
[1642670426969,2.59317804,3122.5,3122.4,2.68459181]
[1642670427667,2.89317804,3122.5,3122.4,2.68459181]
[1642670427867,2.59317804,3122.5,3122.4,2.68459181]
[1642670428067,2.89317804,3122.5,3122.4,2.68459181]
[1642670428268,2.59317804,3122.5,3122.4,2.68459181]
[1642670429520,2.59317804,3122.5,3122.4,4.3152603]
[1642670431424,2.59317804,3122.5,3122.4,7.15494955]
[1642670433468,2.59317804,3122.5,3122.4,7.15412413]
[1642670434672,2.59317804,3122.5,3122.4,4.31443488]
[1642670434875,2.59317804,3122.5,3122.4,6.83655189]
[1642670435074,2.59317804,3122.5,3122.4,9.28634089]
[1642670435279,2.59317804,3122.5,3122.4,3.94296639]
[1642670435878,2.59317804,3122.5,3122.4,6.34296639]
[1642670436814,2.59317804,3122.5,3122.4,13.04833582]
[1642670438118,2.59317804,3122.5,3122.4,10.64833582]
[1642670440776,2.59317804,3122.5,3122.4,10.94833582]
[1642670441378,2.59317804,3122.5,3122.4,6.2320526]
[1642670441777,2.59317804,3122.5,3122.4,3.78316639]
[1642670441981,2.59317804,3122.5,3122.4,4.31591582]
[1642670442176,2.59317804,3122.5,3122.4,2.68376639]
[1642670442578,2.59317804,3122.5,3122.4,4.31591582]
[1642670443180,2.59317804,3122.5,3122.4,5.82249383]
[1642670444213,2.59317804,3122.5,3122.4,4.1903444]
[1642670444615,2.59317804,3122.5,3122.4,2.68376639]
[1642670451612,2.59317804,3122.5,3122.4,4.31591582]
[1642670453716,2.59317804,3122.5,3122.4,4.31509163]
[1642670455670,2.59317804,3122.5,3122.4,6.93619321]
[1642670455870,2.59317804,3122.5,3122.4,4.31509163]
[1642670456074,2.59317804,3122.5,3122.4,7.00693593]
[1642670456269,2.59317804,3122.5,3122.4,5.3747865]
[1642670456871,2.59317804,3122.5,3122.4,2.6829422]
[1642670457375,2.59317804,3122.5,3122.4,4.31593575]
[1642670459123,2.59317804,3122.5,3122.4,2.6829422]
[1642670460526,2.56317804,3122.5,3122.4,2.6829422]
[1642670460926,2.56317804,3122.5,3122.4,5.36487076]
[1642670460927,1.79658902,3122.5,3122.4,5.36487076]
[1642670461130,2.56317804,3122.5,3122.4,5.36487076]
[1642670461328,2.56317804,3122.5,3122.4,5.30991571]
[1642670461727,2.56317804,3122.5,3122.4,7.75880192]
[1642670462771,2.56317804,3122.5,3122.4,5.13182841]
[1642670462972,2.56317804,3122.5,3122.4,2.6829422]
[1642670463774,2.56317804,3122.5,3122.4,4.31601098]
[1642670463973,2.56317804,3122.5,3122.4,2.6829422]
[1642670464175,2.56317804,3122.5,3122.4,0.01400025]
[1642670464975,2.56317804,3122.5,3122.4,1.64711817]
[1642670466715,2.56317804,3122.5,3122.4,0.01400025]
[1642670469323,2.56317804,3122.5,3122.4,0.01320025]
[1642670469763,2.56317804,3122.5,3122.4,1.64631817]
[1642670470571,2.56317804,3122.5,3122.4,0.01320025]
[1642670471970,2.86317804,3122.5,3122.4,0.01320025]
[1642670472570,2.56317804,3122.5,3122.4,0.01320025]
[1642670472972,2.56317804,3122.5,3122.4,1.64631817]
[1642670473373,2.56317804,3122.5,3122.4,0.01320025]
[1642670473817,2.56317804,3122.5,3122.4,2.73940416]
[1642670476824,2.86317804,3122.5,3122.4,2.73940416]
[1642670477023,3.16317804,3122.5,3122.4,2.73940416]
[1642670477262,2.86317804,3122.5,3122.4,2.73940416]
[1642670477862,5.23059421,3122.5,3122.4,2.73940416]
[1642670478063,5.58813115,3122.5,3122.4,2.73940416]
[1642670478663,3.16317804,3122.5,3122.4,2.73940416]
[1642670479367,2.86317804,3122.5,3122.4,2.73940416]
[1642670479764,2.86317804,3122.5,3122.4,2.76743646]
[1642670481023,2.56317804,3122.5,3122.4,2.76743646]
[1642670484022,5.45676354,3122.5,3122.4,2.76743646]
[1642670484422,2.56317804,3122.5,3122.4,2.76743646]
[1642670484870,2.56317804,3122.5,3122.4,2.75415012]
[1642670486772,2.86317804,3122.5,3122.4,2.75415012]
[1642670488719,2.56317804,3122.5,3122.4,2.75415012]
[1642670491226,2.56317804,3122.5,3122.4,2.75330955]
[1642670494872,2.56317804,3122.5,3122.4,2.73856359]
[1642670501468,2.56317804,3122.5,3122.4,4.37168151]
[1642670501668,2.56317804,3122.5,3122.4,2.73856359]
[1642670502269,2.56317804,3122.5,3122.4,4.37168151]
[1642670507566,2.56317804,3122.5,3122.4,2.73856359]
[1642670513217,2.56235761,3122.5,3122.4,2.73856359]
[1642670513620,1.76658902,3122.5,3122.4,2.73856359]
[1642670513818,2.56235761,3122.5,3122.4,2.73856359]
[1642670515570,2.56235761,3122.5,3122.4,2.73910279]
[1642670521422,5.1621223,3122.5,3122.4,2.73910279]
[1642670521823,5.4621223,3122.5,3122.4,2.73910279]
[1642670524166,5.55501291,3122.5,3122.4,2.73910279]
[1642670524566,2.56235761,3122.5,3122.4,2.73910279]
[1642670524766,5.64421895,3122.5,3122.4,2.73910279]
[1642670524970,5.63804327,3122.5,3122.4,2.73910279]
[1642670525170,5.63498357,3122.5,3122.4,2.73910279]
[1642670525369,3.02835761,3122.5,3122.4,2.73910279]
[1642670525570,5.63601385,3122.5,3122.4,2.73910279]
[1642670525870,3.02835761,3122.5,3122.4,2.73910279]
[1642670530174,5.7320486,3122.5,3122.4,2.73910279]
[1642670531373,3.02835761,3122.5,3122.4,2.73910279]
[1642670531777,3.32835761,3122.5,3122.4,2.73910279]
[1642670532974,3.02835761,3122.5,3122.4,2.73910279]
[1642670536227,3.02835761,3122.5,3122.4,2.73825857]
[1642670536630,3.32835761,3122.5,3122.4,2.73825857]
[1642670536828,3.02835761,3122.5,3122.4,2.73825857]
[1642670537868,3.32835761,3122.5,3122.4,2.73825857]
[1642670538068,3.02835761,3122.5,3122.4,2.73825857]
[1642670538670,3.32835761,3122.5,3122.4,2.73825857]
[1642670541324,3.32835761,3122.5,3122.4,2.72829841]
[1642670541525,3.32835761,3122.5,3122.4,0.0020945]
[1642670541724,3.02835761,3122.5,3122.4,0.0020945]
[1642670541926,3.32835761,3122.5,3122.4,0.0020945]
[1642670542726,6.0827999,3122.5,3122.4,0.0020945]
[1642670544330,3.62835761,3122.5,3122.4,0.0020945]
[1642670544532,3.32835761,3122.5,3122.4,0.0020945]
[1642670546383,7.36046423,3122.5,3122.4,0.0020945]
[1642670546784,6.36046423,3122.5,3122.4,0.0020945]
[1642670547784,7.36046423,3122.5,3122.4,0.0020945]
[1642670550323,7.35961244,3122.5,3122.4,0.0020945]
[1642670555878,6.05961244,3122.5,3122.4,0.0020945]
[1642670556121,6.35961244,3122.5,3122.4,0.00264385]
[1642670559621,1.10129,3122.4,3122.2,2.72620391]
[1642670559877,3.39388446,3122.3,3122.2,2.72620391]
[1642670560176,4.46047348,3122.3,3122.2,2.72620391]
[1642670560376,5.25624207,3122.3,3122.2,2.72620391]
[1642670561177,3.32835761,3122.3,3122.2,2.72620391]
[1642670561577,5.92733031,3122.3,3122.2,2.72620391]
[1642670564023,3.32835761,3122.3,3122.2,2.72620391]
[1642670564422,6.09043884,3122.3,3122.2,2.72620391]
[1642670564829,7.09043884,3122.3,3122.2,2.72620391]
[1642670575378,9.53363884,3122.3,3122.1,0.05]
[1642670575584,8.9435855,3122.2,3122.0,0.05]
[1642670575779,5.89457,3122.0,3121.4,1.6293271]
[1642670575981,4.55,3121.4,3121.3,0.05]
[1642670576181,15.7186855,3121.4,3121.3,0.05]
[1642670576378,17.10784684,3121.4,3121.3,0.05795793]
[1642670576579,4.1,3121.3,3121.2,0.05]
[1642670576778,5.866,3121.3,3121.2,0.05]
[1642670576980,7.038,3121.3,3121.2,0.05]
[1642670577179,3.75,3121.2,3120.8,0.05]
[1642670577379,5.822,3121.0,3120.8,0.05]
[1642670577680,5.822,3121.0,3120.0,1.70811792]
[1642670577681,4.4017,3120.9,3120.0,1.70811792]
[1642670577878,1.60341,3120.8,3120.0,1.60811792]
[1642670578079,0.466,3120.7,3120.1,0.00454739]
[1642670578379,0.466,3120.7,3119.9,0.00568424]
[1642670578380,2.157,3120.7,3119.9,0.00568424]
[1642670578630,1.0,3120.1,3119.9,0.00568424]
[1642670578833,3.17912201,3120.6,3119.5,1.1595]
[1642670578834,3.17912201,3120.6,3119.6,0.00738951]
[1642670578835,1.0,3119.8,3119.6,0.00738951]
[1642670579032,2.0692,3119.8,3119.6,0.00738951]
[1642670579230,2.20571614,3119.7,3119.6,0.00738951]
[1642670579629,2.20571614,3119.7,3119.3,0.028]
[1642670579630,2.20571614,3119.7,3119.4,0.00852635]
[1642670579835,0.466,3119.7,3119.4,0.00852635]
[1642670580034,1.466,3119.7,3119.4,0.00852635]
[1642670581034,2.26788,3119.7,3119.4,0.00852635]
[1642670581234,0.79576859,3119.6,3119.4,0.00852635]
[1642670581438,0.466,3119.5,3119.4,0.00852635]
[1642670581635,0.766,3119.5,3119.4,0.00852635]
[1642670581836,1.066,3119.5,3119.4,0.00852635]
[1642670582874,3.80609417,3119.5,3119.4,0.00852635]
[1642670583474,1.066,3119.5,3119.4,0.00852635]
[1642670584177,3.68806571,3119.5,3119.4,0.00852635]
[1642670584674,4.68806571,3119.5,3119.4,0.00852635]
[1642670584878,4.69872141,3119.5,3119.4,0.00852635]
[1642670586329,4.69872141,3119.5,3119.4,0.01449114]
[1642670586330,4.71577259,3119.5,3119.4,0.01449114]
[1642670586528,5.51154118,3119.5,3119.4,0.01449114]
[1642670586830,6.37867649,3119.5,3119.4,0.01449114]
[1642670587530,5.37867649,3119.5,3119.4,0.01449114]
[1642670587828,2.63901331,3119.5,3119.4,0.01449114]
[1642670588429,6.38049924,3119.5,3119.4,0.01449114]
[1642670588629,3.63901331,3119.5,3119.4,0.01449114]
[1642670588831,2.03901331,3119.5,3119.4,0.01449114]
[1642670589230,1.57301331,3119.5,3119.4,0.01449114]
[1642670589981,2.57301331,3119.5,3119.4,0.01449114]
[1642670590583,1.0,3119.5,3119.4,0.01449114]
[1642670590783,0.466,3119.9,3119.6,1.41077764]
[1642670590982,0.466,3119.9,3119.6,4.06904079]
[1642670591182,0.766,3119.9,3119.7,0.00682108]
[1642670591384,1.066,3119.9,3119.7,0.00682108]
[1642670591882,1.066,3119.9,3119.6,0.00738951]
[1642670594136,3.45257832,3119.8,3119.6,0.00738951]
[1642670594333,2.57037666,3119.7,3119.6,0.00738951]
[1642670594533,2.87037666,3119.7,3119.6,0.00738951]
[1642670594737,3.33637666,3119.7,3119.6,0.00738951]
[1642670594933,3.37570775,3119.7,3119.6,0.00738951]
[1642670595132,1.766,3119.7,3119.6,0.00738951]
[1642670595334,1.766,3119.7,3119.6,2.73629325]
[1642670595935,0.766,3119.7,3119.6,2.73629325]
[1642670596333,1.766,3119.7,3119.6,2.74273464]
[1642670600385,2.766,3119.7,3119.6,2.74273464]
[1642670601234,1.766,3119.7,3119.6,2.74273464]
[1642670601836,0.766,3119.7,3119.6,2.74273464]
[1642670603536,1.0,3119.8,3119.6,5.38689397]
[1642670603736,1.1942985,3120.3,3119.7,5.52245243]
[1642670603737,0.0322985,3120.3,3119.7,5.52245243]
[1642670603935,1.0,3120.0,3119.8,2.72890374]
[1642670604136,1.0,3120.0,3119.8,2.7351564]
[1642670604335,1.0,3120.0,3119.9,4.00832478]
[1642670604983,0.0322985,3120.3,3119.9,4.00832478]
[1642670605186,1.0,3120.2,3120.0,2.72890374]
[1642670605384,1.0,3120.2,3120.0,2.73401955]
[1642670605685,1.3,3120.2,3120.1,2.72890374]
[1642670606285,4.35562499,3120.2,3120.1,2.72890374]
[1642670606486,1.6,3120.2,3120.1,2.72890374]
[1642670607285,0.6,3120.2,3120.1,2.72890374]
[1642670607486,0.0322985,3120.3,3120.2,4.09999999]
[1642670607690,0.0322985,3120.3,3120.2,4.52890373]
[1642670607888,0.0322985,3120.3,3120.2,4.5328827]
[1642670609333,1.0322985,3120.3,3120.2,4.5328827]
[1642670609532,1.3322985,3120.3,3120.2,4.5328827]
[1642670609733,0.0322985,3120.3,3120.2,4.5328827]
[1642670611340,0.0322985,3120.3,3120.2,4.53925134]
[1642670611739,1.0322985,3120.3,3120.2,4.53925134]
[1642670612141,1.6322985,3120.3,3120.2,4.53925134]
[1642670615194,1.0322985,3120.3,3120.2,4.53925134]
[1642670615395,1.0322985,3120.3,3120.2,7.47404117]
[1642670615599,0.0322985,3120.3,3120.2,4.53925134]
[1642670616246,1.0,3121.0,3120.3,3.25]
[1642670616445,1.0,3121.0,3120.2,4.53925134]
[1642670616446,1.0,3121.0,3120.4,2.72890374]
[1642670616647,2.66460693,3121.2,3120.5,2.72890374]
[1642670616846,2.66460693,3121.2,3120.6,2.72890374]
[1642670617046,0.00113685,3121.1,3120.7,2.72890374]
[1642670617247,0.00113685,3121.1,3120.8,2.72890374]
[1642670617447,0.00113685,3121.1,3120.7,0.00113685]
[1642670617448,1.0,3120.9,3120.7,0.00113685]
[1642670617847,0.3,3120.9,3120.3,0.00341054]
[1642670618048,1.0,3120.8,3120.3,0.00341054]
[1642670618549,0.80155,3121.0,3120.3,0.00341054]
[1642670619150,1.0,3120.7,3120.3,0.00341054]
[1642670619350,2.64116936,3120.6,3120.3,0.00341054]
[1642670619552,3.10716936,3120.6,3120.3,0.00341054]
[1642670620385,1.466,3120.6,3120.3,0.00341054]
[1642670620888,1.466,3120.6,3120.4,1.27525]
[1642670621084,0.466,3120.6,3120.4,1.27525]
[1642670621283,0.466,3120.6,3120.5,0.00860597]
[1642670621486,1.466,3120.6,3120.5,0.00860597]
[1642670625739,2.766,3120.6,3120.5,0.00860597]
[1642670625936,1.466,3120.6,3120.5,0.00860597]
[1642670626336,1.766,3120.6,3120.5,0.00860597]
[1642670626737,1.466,3120.6,3120.5,0.00860597]
[1642670627137,1.44038634,3120.6,3120.5,0.00860597]
[1642670631630,1.44038634,3120.6,3120.5,4.90860597]
[1642670631831,0.00113685,3121.1,3120.5,4.90860597]
[1642670632237,0.00113685,3121.1,3120.6,0.00170527]
[1642670632638,0.00113685,3121.1,3120.6,2.72991036]
[1642670632838,0.00113685,3121.1,3120.7,2.72819233]
[1642670633038,0.00113685,3121.1,3120.8,2.72819233]
[1642670633338,0.00113685,3121.1,3120.7,0.00113685]
[1642670633339,0.00113685,3121.1,3120.9,2.72819233]
[1642670633639,0.00113685,3121.1,3121.0,2.72819233]
[1642670634040,0.80264685,3121.1,3120.7,0.00113685]
[1642670634438,1.40264685,3121.1,3120.9,1.23624129]
[1642670634638,1.10264685,3121.1,3121.0,2.72819233]
[1642670635291,2.10264685,3121.1,3121.0,2.72819233]
[1642670635890,2.10264685,3121.1,3120.7,0.00113685]
[1642670636292,2.10264685,3121.1,3121.0,0.00648636]
[1642670636490,2.10264685,3121.1,3121.0,2.73467869]
[1642670636693,2.53092285,3121.1,3121.0,2.73467869]
[1642670636890,2.23092285,3121.1,3121.0,2.73467869]
[1642670637090,3.10264685,3121.1,3121.0,2.73467869]
[1642670637691,2.10264685,3121.1,3121.0,2.73467869]
[1642670638291,3.10264685,3121.1,3121.0,2.73467869]
[1642670639434,5.76056951,3121.1,3121.0,2.73467869]
[1642670639630,2.10264685,3121.1,3121.0,2.73467869]
[1642670639836,1.10264685,3121.1,3121.0,2.74928273]
[1642670640135,3.73238976,3121.1,3121.0,2.74928273]
[1642670640335,1.10264685,3121.1,3121.0,2.74928273]
[1642670640535,2.75264685,3121.1,3121.0,2.74928273]
[1642670640735,2.88091885,3121.1,3121.0,2.74928273]
[1642670641034,3.88091885,3121.1,3121.0,2.74928273]
[1642670641635,5.53091885,3121.1,3121.0,2.74928273]
[1642670642492,7.18091885,3121.1,3121.0,2.74928273]
[1642670643194,7.64691885,3121.1,3121.0,2.74928273]
[1642670643394,5.99691885,3121.1,3121.0,2.74928273]
[1642670643595,4.42940885,3121.1,3121.0,2.74928273]
[1642670643798,3.42940885,3121.1,3121.0,2.74928273]
[1642670643997,3.42940885,3121.1,3121.0,5.63382019]
[1642670643998,0.12940885,3121.1,3121.0,5.63382019]
[1642670644197,0.12940885,3121.1,3121.0,2.74928273]
[1642670644601,1.77940885,3121.1,3121.0,2.74928273]
[1642670644797,2.77940885,3121.1,3121.0,2.73467869]
[1642670645599,3.07940885,3121.1,3121.0,2.73467869]
[1642670646040,2.95113685,3121.1,3121.0,2.73467869]
[1642670646432,1.95113685,3121.1,3121.0,2.73467869]
[1642670646932,1.95,3121.1,3121.0,2.73467869]